[Event "MČR juniorů a juniorek v rapid šachu 2024"]
[Site "Hotel Fit Fun, Harrachov, Czech Republic"]
[Date "2024.09.22"]
[Round "9.18"]
[White "Stary Simon"]
[Black "Vyslysel Petr"]
[Result "1-0"]
[TimeControl "20+5"]
[WhiteFideId "23734353"]
[BlackFideId "23730277"]
[WhiteElo "1866"]
[BlackElo "1678"]

1. e4 {[%clk 00:20:09]} c6 {[%clk 00:20:09]} 2. d4 {[%clk 00:20:13]} {[%emt
00:00:01]} d5 {[%clk 00:20:13]} 3. e5 {[%clk 00:20:17]} c5 {[%clk 00:20:17]}
{[%emt 00:00:01]} 4. c3 {[%clk 00:20:21]} Nc6 {[%clk 00:20:19]} {[%emt
00:00:03]} 5. Be2 {[%clk 00:20:25]} cxd4 {[%clk 00:20:14]} {[%emt 00:00:10]} 6.
cxd4 {[%clk 00:20:29]} e6 {[%clk 00:19:18]} {[%emt 00:01:01]} 7. Nf3 {[%clk
00:20:31]} {[%emt 00:00:03]} Qb6 {[%clk 00:19:21]} {[%emt 00:00:02]} 8. O-O
{[%clk 00:20:27]} {[%emt 00:00:09]} Nge7 {[%clk 00:19:22]} {[%emt 00:00:04]} 9.
Na3 {[%clk 00:19:29]} {[%emt 00:01:04]} Nf5 {[%clk 00:19:08]} {[%emt 00:00:18]}
10. Nc2 {[%clk 00:19:32]} {[%emt 00:00:01]} Bd7 {[%clk 00:19:12]} {[%emt
00:00:02]} 11. g4 {[%clk 00:19:05]} {[%emt 00:00:32]} Nfe7 {[%clk 00:19:11]}
{[%emt 00:00:05]} 12. b3 {[%clk 00:18:58]} {[%emt 00:00:11]} Nb4 {[%clk
00:17:49]} {[%emt 00:01:27]} 13. Ba3 {[%clk 00:17:58]} {[%emt 00:01:06]} Ng6
{[%clk 00:16:22]} {[%emt 00:01:32]} 14. Nxb4 {[%clk 00:16:01]} {[%emt
00:02:02]} Bxb4 {[%clk 00:16:24]} {[%emt 00:00:03]} 15. Bxb4 {[%clk 00:16:05]}
{[%emt 00:00:02]} Qxb4 {[%clk 00:16:26]} {[%emt 00:00:02]} 16. a3 {[%clk
00:16:06]} {[%emt 00:00:04]} Qb6 {[%clk 00:16:25]} {[%emt 00:00:06]} 17. Qd2
{[%clk 00:15:22]} {[%emt 00:00:49]} O-O {[%clk 00:15:56]} {[%emt 00:00:33]} 18.
h4 {[%clk 00:15:08]} {[%emt 00:00:20]} Bb5 {[%clk 00:15:35]} {[%emt 00:00:26]}
19. Bxb5 {[%clk 00:14:50]} {[%emt 00:00:24]} Qxb5 {[%clk 00:15:38]} {[%emt
00:00:02]} 20. h5 {[%clk 00:14:53]} {[%emt 00:00:01]} Qxb3 {[%clk 00:14:00]}
{[%emt 00:01:43]} 21. Kg2 {[%clk 00:14:39]} {[%emt 00:00:19]} Ne7 {[%clk
00:09:24]} {[%emt 00:04:41]} 22. h6 {[%clk 00:14:34]} {[%emt 00:00:10]} Rfc8
{[%clk 00:07:20]} {[%emt 00:02:10]} 23. Rfb1 {[%clk 00:13:25]} {[%emt
00:01:14]} Qc2 {[%clk 00:06:38]} {[%emt 00:00:47]} 24. Qg5 {[%clk 00:12:52]}
{[%emt 00:00:38]} Qg6 {[%clk 00:06:20]} {[%emt 00:00:23]} 25. Rxb7 {[%clk
00:12:29]} {[%emt 00:00:28]} Nc6 {[%clk 00:05:31]} {[%emt 00:00:54]} 26. Qxg6
{[%clk 00:11:50]} {[%emt 00:00:44]} hxg6 {[%clk 00:05:31]} {[%emt 00:00:04]} 27.
h7+ {[%clk 00:11:48]} {[%emt 00:00:08]} Kxh7 {[%clk 00:05:26]} {[%emt
00:00:10]} 28. Rxf7 {[%clk 00:11:50]} {[%emt 00:00:03]} Rf8 {[%clk 00:05:19]}
{[%emt 00:00:12]} 29. Rc7 {[%clk 00:10:29]} {[%emt 00:01:27]} Nd8 {[%clk
00:03:17]} {[%emt 00:02:06]} 30. Rh1+ {[%clk 00:09:53]} {[%emt 00:00:41]} Kg8
{[%clk 00:03:21]} {[%emt 00:00:02]} 31. Kg3 {[%clk 00:08:50]} {[%emt 00:01:09]}
Rf7 {[%clk 00:03:08]} {[%emt 00:00:16]} 32. Rc3 {[%clk 00:08:30]} {[%emt
00:00:25]} Rb7 {[%clk 00:03:06]} {[%emt 00:00:07]} 33. Rhc1 {[%clk 00:07:06]}
{[%emt 00:01:29]} Rab8 {[%clk 00:02:19]} {[%emt 00:00:52]} 34. R1c2 {[%clk
00:06:28]} {[%emt 00:00:43]} Kf8 {[%clk 00:01:59]} {[%emt 00:00:25]} 35. Kf4
{[%clk 00:06:27]} {[%emt 00:00:06]} Rb3 {[%clk 00:01:33]} {[%emt 00:00:31]} 36.
Kg5 {[%clk 00:05:52]} {[%emt 00:00:40]} Kf7 {[%clk 00:00:49]} {[%emt 00:00:50]}
37. Rc7+ {[%clk 00:05:33]} {[%emt 00:00:24]} Kf8 {[%clk 00:00:52]} {[%emt
00:00:02]} 38. Nh4 {[%clk 00:05:22]} {[%emt 00:00:15]} R8b7 {[%clk 00:00:38]}
{[%emt 00:00:20]} 39. Nxg6+ {[%clk 00:04:22]} {[%emt 00:01:05]} Ke8 {[%clk
00:00:37]} {[%emt 00:00:06]} 40. Rxb7 {[%clk 00:03:03]} {[%emt 00:01:23]} Rxb7
{[%clk 00:00:33]} {[%emt 00:00:08]} 41. Nf4 {[%clk 00:03:05]} {[%emt 00:00:04]}
Rf7 {[%clk 00:00:09]} {[%emt 00:00:29]} 42. Rc8 {[%clk 00:02:40]} {[%emt
00:00:30]} Kd7 {[%clk 00:00:13]} {[%emt 00:00:01]} 43. Rc1 {[%clk 00:01:58]}
{[%emt 00:00:47]} Nc6 {[%clk 00:00:13]} {[%emt 00:00:05]} 44. Nxe6 {[%clk
00:01:36]} {[%emt 00:00:27]} Rxf2 {[%clk 00:00:11]} {[%emt 00:00:07]} 45. Nc5+
{[%clk 00:01:32]} {[%emt 00:00:08]} Kc7 {[%emt 00:00:07]} 46. Nd3 {[%clk
00:01:23]} {[%emt 00:00:13]} Rd2 {[%clk 00:00:13]} {[%emt 00:00:03]} 47. Nb4
{[%clk 00:01:25]} {[%emt 00:00:03]} Rxd4 {[%clk 00:00:14]} {[%emt 00:00:03]} 48.
Rxc6+ {[%clk 00:01:26]} {[%emt 00:00:03]} Kb7 {[%clk 00:00:15]} {[%emt
00:00:05]} 49. Rc3 {[%clk 00:01:09]} {[%emt 00:00:22]} Re4 {[%clk 00:00:16]}
{[%emt 00:00:03]} 50. Kf5 {[%clk 00:00:59]} {[%emt 00:00:15]} Rd4 {[%clk
00:00:09]} {[%emt 00:00:12]} 51. Rd3 {[%clk 00:00:45]} {[%emt 00:00:19]} g6+
{[%clk 00:00:06]} {[%emt 00:00:08]} 52. Kxg6 {[%clk 00:00:42]} {[%emt
00:00:09]} Rxg4+ {[%clk 00:00:09]} {[%emt 00:00:02]} 53. Kf5 {[%clk 00:00:44]}
{[%emt 00:00:02]} Re4 {[%clk 00:00:13]} {[%emt 00:00:02]} 54. Rxd5 {[%clk
00:00:36]} {[%emt 00:00:14]} Re1 {[%clk 00:00:16]} {[%emt 00:00:01]} 55. Rd3
{[%clk 00:00:35]} {[%emt 00:00:06]} a5 {[%clk 00:00:17]} {[%emt 00:00:04]} 56.
Nd5 {[%clk 00:00:36]} {[%emt 00:00:04]} a4 {[%clk 00:00:17]} {[%emt 00:00:06]}
57. e6 {[%clk 00:00:38]} {[%emt 00:00:03]} Kc6 {[%clk 00:00:19]} {[%emt
00:00:03]} 58. Nb4+ {[%clk 00:00:41]} {[%emt 00:00:02]} Kb5 {[%clk 00:00:23]}
{[%emt 00:00:02]} 59. Rc3 {[%clk 00:00:38]} {[%emt 00:00:07]} Rf1 {[%clk
00:00:26]} {[%emt 00:00:01]} 60. Kg6 {[%clk 00:00:41]} {[%emt 00:00:02]} Rg1+
{[%clk 00:00:29]} {[%emt 00:00:02]} 61. Kf7 {[%clk 00:00:45]} {[%emt 00:00:01]}
Rf1+ {[%clk 00:00:31]} {[%emt 00:00:02]} 62. Ke8 {[%clk 00:00:49]} {[%emt
00:00:01]} Rh1 {[%clk 00:00:28]} {[%emt 00:00:08]} 63. e7 {[%clk 00:00:52]}
{[%emt 00:00:02]} 1-0



[ePGN "0.1;DGT LiveChess/2.2.6"]

[Event "MČR juniorů a juniorek v rapid šachu 2024"]
[Site "Hotel Fit Fun, Harrachov, Czech Republic"]
[Date "2024.09.22"]
[Round "9.19"]
[White "Sknouril Jakub"]
[Black "Husa Daniel"]
[Result "1/2-1/2"]
[TimeControl "20+5"]
[WhiteFideId "23731133"]
[BlackFideId "393487"]
[WhiteElo "1806"]
[BlackElo "1866"]

1. Nf3 {[%clk 00:20:09]} {[%emt 00:00:01]} Nf6 {[%clk 00:20:06]} {[%emt
00:00:05]} 2. c4 {[%clk 00:20:13]} e6 {[%clk 00:20:09]} {[%emt 00:00:02]} 3.
Nc3 {[%clk 00:20:09]} {[%emt 00:00:08]} d5 {[%clk 00:20:07]} {[%emt 00:00:08]}
4. d4 {[%clk 00:19:30]} {[%emt 00:00:44]} c5 {[%clk 00:20:08]} {[%emt
00:00:03]} 5. e3 {[%clk 00:19:22]} {[%emt 00:00:13]} Nc6 {[%clk 00:19:55]}
{[%emt 00:00:19]} 6. Be2 {[%clk 00:18:53]} {[%emt 00:00:34]} Be7 {[%clk
00:19:27]} {[%emt 00:00:33]} 7. O-O {[%clk 00:18:54]} {[%emt 00:00:03]} O-O
{[%clk 00:19:13]} {[%emt 00:00:20]} 8. b3 {[%clk 00:18:50]} {[%emt 00:00:09]}
b6 {[%clk 00:17:08]} {[%emt 00:02:10]} 9. Bb2 {[%clk 00:17:47]} {[%emt
00:01:07]} Bb7 {[%clk 00:16:55]} {[%emt 00:00:18]} 10. h3 {[%clk 00:15:37]}
{[%emt 00:02:16]} a6 {[%clk 00:16:17]} {[%emt 00:00:43]} 11. a3 {[%clk
00:13:16]} {[%emt 00:02:26]} Rc8 {[%clk 00:15:16]} {[%emt 00:01:05]} 12. dxc5
{[%clk 00:11:07]} {[%emt 00:02:15]} Bxc5 {[%clk 00:13:08]} {[%emt 00:02:12]} 13.
Qc2 {[%clk 00:07:27]} {[%emt 00:03:45]} dxc4 {[%clk 00:11:26]} {[%emt
00:01:47]} 14. Bxc4 {[%clk 00:07:14]} {[%emt 00:00:18]} b5 {[%clk 00:05:53]}
{[%emt 00:05:38]} 15. Be2 {[%clk 00:06:48]} {[%emt 00:00:30]} Qe7 {[%clk
00:05:25]} {[%emt 00:00:34]} 16. b4 {[%clk 00:05:21]} {[%emt 00:01:32]} Bb6
{[%clk 00:04:59]} {[%emt 00:00:31]} 17. Rac1 {[%clk 00:05:16]} {[%emt
00:00:10]} Rfd8 {[%clk 00:04:51]} {[%emt 00:00:13]} 18. Rfd1 {[%clk 00:05:19]}
{[%emt 00:00:02]} h6 {[%clk 00:04:11]} {[%emt 00:00:45]} 1/2-1/2



[ePGN "0.1;DGT LiveChess/2.2.6"]

[Event "MČR juniorů a juniorek v rapid šachu 2024"]
[Site "Hotel Fit Fun, Harrachov, Czech Republic"]
[Date "2024.09.22"]
[Round "9.2"]
[White "Hozda Max"]
[Black "Hak David"]
[Result "0-1"]
[TimeControl "20+5"]
[WhiteFideId "23725958"]
[BlackFideId "377007"]
[WhiteElo "1939"]
[BlackElo "2103"]

1. d4 {[%clk 00:20:06]} {[%emt 00:00:04]} Nf6 {[%clk 00:20:09]} 2. Nc3 {[%clk
00:20:09]} {[%emt 00:00:02]} d5 {[%clk 00:19:51]} {[%emt 00:00:23]} 3. Bf4
{[%clk 00:20:12]} {[%emt 00:00:02]} e6 {[%clk 00:19:51]} {[%emt 00:00:05]} 4.
Nb5 {[%clk 00:20:15]} {[%emt 00:00:01]} Na6 {[%clk 00:19:48]} {[%emt 00:00:08]}
5. e3 {[%clk 00:20:19]} {[%emt 00:00:01]} Ne4 {[%clk 00:18:34]} {[%emt
00:01:19]} 6. f3 {[%clk 00:19:12]} {[%emt 00:01:12]} Nd6 {[%clk 00:17:58]}
{[%emt 00:00:42]} 7. Nh3 {[%clk 00:17:59]} {[%emt 00:01:18]} Nxb5 {[%clk
00:17:46]} {[%emt 00:00:17]} 8. Bxb5+ {[%clk 00:18:02]} {[%emt 00:00:02]} Bd7
{[%clk 00:17:12]} {[%emt 00:00:39]} 9. Bxa6 {[%clk 00:17:39]} {[%emt 00:00:30]}
bxa6 {[%clk 00:17:15]} {[%emt 00:00:02]} 10. O-O {[%clk 00:17:41]} {[%emt
00:00:02]} Be7 {[%clk 00:16:40]} {[%emt 00:00:40]} 11. Nf2 {[%clk 00:17:32]}
{[%emt 00:00:14]} c5 {[%clk 00:15:12]} {[%emt 00:01:33]} 12. Nd3 {[%clk
00:16:42]} {[%emt 00:00:55]} c4 {[%clk 00:12:54]} {[%emt 00:02:23]} 13. Nc5
{[%clk 00:14:25]} {[%emt 00:02:21]} O-O {[%clk 00:11:43]} {[%emt 00:01:16]} 14.
b4 {[%clk 00:13:48]} {[%emt 00:00:42]} a5 {[%clk 00:10:30]} {[%emt 00:01:18]}
15. bxa5 {[%clk 00:11:28]} {[%emt 00:02:25]} Bxc5 {[%clk 00:10:24]} {[%emt
00:00:10]} 16. dxc5 {[%clk 00:11:29]} {[%emt 00:00:05]} Qxa5 {[%clk 00:10:25]}
{[%emt 00:00:04]} 17. Bd6 {[%clk 00:11:29]} {[%emt 00:00:04]} Rfe8 {[%clk
00:10:21]} {[%emt 00:00:10]} 18. Qd4 {[%clk 00:11:00]} {[%emt 00:00:34]} Bc6
{[%clk 00:09:59]} {[%emt 00:00:26]} 19. h4 {[%clk 00:10:01]} {[%emt 00:01:04]}
f6 {[%clk 00:09:28]} {[%emt 00:00:36]} 20. f4 {[%clk 00:09:55]} {[%emt
00:00:12]} Qa4 {[%clk 00:06:22]} {[%emt 00:03:11]} 21. Rf2 {[%clk 00:08:46]}
{[%emt 00:01:14]} Rad8 {[%clk 00:05:36]} {[%emt 00:00:51]} 22. g4 {[%clk
00:06:40]} {[%emt 00:02:11]} c3 {[%clk 00:03:54]} {[%emt 00:01:47]} 23. Qxc3
{[%clk 00:05:57]} {[%emt 00:00:48]} e5 {[%clk 00:03:52]} {[%emt 00:00:07]} 24.
fxe5 {[%clk 00:02:56]} {[%emt 00:03:06]} Qxg4+ {[%clk 00:03:43]} {[%emt
00:00:14]} 25. Kf1 {[%clk 00:02:40]} {[%emt 00:00:20]} Bb5+ {[%clk 00:03:35]}
{[%emt 00:00:13]} 0-1



[ePGN "0.1;DGT LiveChess/2.2.6"]

[Event "MČR juniorů a juniorek v rapid šachu 2024"]
[Site "Hotel Fit Fun, Harrachov, Czech Republic"]
[Date "2024.09.22"]
[Round "9.20"]
[White "Jun Robert"]
[Black "Martinkovic Adam"]
[Result "1/2-1/2"]
[TimeControl "20+5"]
[WhiteFideId "23709510"]
[BlackFideId "23728019"]
[WhiteElo "1681"]
[BlackElo "1841"]

1. e4 {[%clk 00:20:09]} c6 {[%emt 00:00:03]} 2. d4 {[%clk 00:20:12]} d5 {[%clk
00:20:11]} {[%emt 00:00:02]} 3. exd5 {[%clk 00:20:16]} {[%emt 00:00:01]} cxd5
{[%clk 00:20:15]} {[%emt 00:00:02]} 4. c4 {[%clk 00:20:18]} {[%emt 00:00:03]}
Nc6 {[%clk 00:20:16]} {[%emt 00:00:04]} 5. Nf3 {[%clk 00:20:16]} {[%emt
00:00:07]} Nf6 {[%clk 00:20:20]} {[%emt 00:00:01]} 6. Nc3 {[%clk 00:20:05]}
{[%emt 00:00:16]} Bg4 {[%clk 00:20:15]} {[%emt 00:00:09]} 7. Be3 {[%clk
00:19:36]} {[%emt 00:00:35]} e6 {[%clk 00:20:05]} {[%emt 00:00:15]} 8. cxd5
{[%clk 00:19:37]} {[%emt 00:00:04]} Nxd5 {[%clk 00:20:03]} {[%emt 00:00:07]} 9.
Nxd5 {[%clk 00:19:37]} {[%emt 00:00:06]} Qxd5 {[%clk 00:19:54]} {[%emt
00:00:13]} 10. Be2 {[%clk 00:18:27]} {[%emt 00:01:15]} Bb4+ {[%clk 00:19:46]}
{[%emt 00:00:13]} 11. Bd2 {[%clk 00:18:04]} {[%emt 00:00:29]} Bxd2+ {[%clk
00:19:32]} {[%emt 00:00:19]} 12. Qxd2 {[%clk 00:18:07]} {[%emt 00:00:01]} O-O
{[%clk 00:19:25]} {[%emt 00:00:12]} 13. O-O {[%clk 00:18:10]} {[%emt 00:00:02]}
Rfd8 {[%clk 00:17:37]} {[%emt 00:01:54]} 14. Rfd1 {[%clk 00:18:06]} {[%emt
00:00:08]} Bxf3 15. Bxf3 {[%clk 00:18:10]} Qxd4 {[%clk 00:16:56]} {[%emt
00:00:03]} 16. Qc2 {[%clk 00:18:11]} {[%emt 00:00:04]} Qb6 {[%clk 00:16:45]}
{[%emt 00:00:16]} 17. Rac1 {[%clk 00:18:14]} {[%emt 00:00:02]} Nd4 {[%clk
00:16:03]} {[%emt 00:00:47]} 18. Qc3 {[%clk 00:18:18]} {[%emt 00:00:01]} Nxf3+
{[%clk 00:15:41]} {[%emt 00:00:27]} 19. gxf3 {[%clk 00:18:21]} {[%emt
00:00:02]} Rxd1+ 20. Rxd1 {[%clk 00:18:25]} Rd8 {[%clk 00:14:48]} {[%emt
00:00:14]} 21. Rc1 {[%clk 00:18:00]} {[%emt 00:00:30]} g6 {[%clk 00:13:17]}
{[%emt 00:01:35]} 22. Qf6 {[%clk 00:17:42]} {[%emt 00:00:23]} Qd6 {[%clk
00:12:51]} {[%emt 00:00:32]} 23. Rc3 {[%clk 00:17:05]} {[%emt 00:00:41]} e5
{[%clk 00:12:21]} {[%emt 00:00:35]} 24. Qh4 {[%clk 00:16:59]} {[%emt 00:00:11]}
b5 {[%clk 00:11:35]} {[%emt 00:00:52]} 25. a3 {[%clk 00:16:37]} {[%emt
00:00:27]} Kg7 {[%clk 00:10:02]} {[%emt 00:01:37]} 26. Re3 {[%clk 00:16:24]}
{[%emt 00:00:18]} Qf6 {[%clk 00:08:33]} {[%emt 00:01:34]} 27. Qe4 {[%clk
00:15:55]} {[%emt 00:00:33]} Rd1+ {[%clk 00:07:34]} {[%emt 00:01:05]} 28. Re1
{[%clk 00:15:32]} {[%emt 00:00:28]} Qd6 {[%clk 00:06:36]} {[%emt 00:01:03]} 29.
Kg2 {[%clk 00:14:26]} {[%emt 00:01:11]} Rxe1 {[%clk 00:06:29]} {[%emt
00:00:12]} 30. Qxe1 {[%clk 00:14:30]} {[%emt 00:00:01]} Qd4 {[%clk 00:06:32]}
{[%emt 00:00:02]} 31. Qa5 {[%clk 00:14:08]} {[%emt 00:00:27]} Qxb2 {[%clk
00:05:11]} {[%emt 00:01:26]} 32. Qxa7 {[%clk 00:14:12]} {[%emt 00:00:01]} h5
{[%clk 00:04:48]} {[%emt 00:00:29]} 33. Qa6 {[%clk 00:14:03]} {[%emt 00:00:14]}
Qb3 {[%clk 00:03:46]} {[%emt 00:01:07]} 34. Qd6 {[%clk 00:13:52]} {[%emt
00:00:15]} Qb2 {[%clk 00:03:30]} {[%emt 00:00:21]} 35. Qc5 {[%clk 00:13:53]}
{[%emt 00:00:04]} Qe2 {[%clk 00:02:22]} {[%emt 00:01:13]} 36. Qd6 {[%clk
00:13:50]} {[%emt 00:00:08]} h4 {[%clk 00:01:29]} {[%emt 00:00:58]} 37. Qe7
{[%clk 00:13:31]} {[%emt 00:00:25]} Qb2 {[%clk 00:00:34]} {[%emt 00:00:59]} 38.
Qc5 {[%clk 00:13:03]} {[%emt 00:00:33]} Qe2 {[%clk 00:00:23]} {[%emt 00:00:15]}
1/2-1/2



[ePGN "0.1;DGT LiveChess/2.2.6"]

[Event "MČR juniorů a juniorek v rapid šachu 2024"]
[Site "Hotel Fit Fun, Harrachov, Czech Republic"]
[Date "2024.09.22"]
[Round "9.21"]
[White "Budil Vaclav"]
[Black "Rybacek Martin"]
[Result "0-1"]
[TimeControl "20+5"]
[WhiteFideId "23776226"]
[BlackFideId "23739266"]
[WhiteElo "1697"]
[BlackElo "1831"]

1. e4 {[%clk 00:20:08]} {[%emt 00:00:02]} c6 {[%clk 00:20:09]} {[%emt
00:00:02]} 2. d4 {[%clk 00:20:10]} {[%emt 00:00:03]} d5 {[%clk 00:20:13]}
{[%emt 00:00:01]} 3. Nc3 {[%clk 00:20:14]} dxe4 {[%clk 00:20:16]} {[%emt
00:00:01]} 4. Nxe4 {[%clk 00:20:18]} {[%emt 00:00:01]} Bf5 {[%clk 00:20:20]}
{[%emt 00:00:02]} 5. Ng3 {[%clk 00:20:21]} {[%emt 00:00:01]} Bg6 {[%clk
00:20:21]} {[%emt 00:00:04]} 6. Nh3 {[%clk 00:20:25]} {[%emt 00:00:01]} e6
{[%clk 00:20:18]} {[%emt 00:00:08]} 7. Nf4 {[%clk 00:20:28]} {[%emt 00:00:03]}
Bd6 {[%clk 00:20:19]} {[%emt 00:00:04]} 8. c3 {[%clk 00:20:29]} {[%emt
00:00:03]} Nf6 {[%clk 00:19:58]} {[%emt 00:00:26]} 9. Nxg6 {[%clk 00:20:15]}
{[%emt 00:00:19]} hxg6 {[%clk 00:20:01]} {[%emt 00:00:02]} 10. Bd3 {[%clk
00:20:14]} {[%emt 00:00:06]} Qc7 {[%clk 00:20:04]} {[%emt 00:00:02]} 11. Qf3
{[%clk 00:20:08]} {[%emt 00:00:10]} Nbd7 {[%clk 00:20:00]} {[%emt 00:00:10]} 12.
Bd2 {[%clk 00:19:33]} {[%emt 00:00:41]} O-O {[%clk 00:19:09]} {[%emt 00:00:55]}
13. O-O-O {[%clk 00:19:12]} {[%emt 00:00:26]} c5 {[%clk 00:19:10]} {[%emt
00:00:05]} 14. dxc5 {[%clk 00:19:09]} {[%emt 00:00:09]} Nxc5 {[%clk 00:19:11]}
{[%emt 00:00:04]} 15. Bc2 {[%clk 00:19:11]} {[%emt 00:00:02]} Rac8 {[%clk
00:15:08]} {[%emt 00:04:07]} 16. h4 {[%clk 00:16:40]} {[%emt 00:02:37]} Bxg3
{[%clk 00:14:58]} {[%emt 00:00:15]} 17. fxg3 {[%clk 00:16:36]} {[%emt
00:00:09]} Qc6 {[%clk 00:14:43]} {[%emt 00:00:20]} 18. Qxc6 {[%clk 00:14:17]}
{[%emt 00:02:25]} Rxc6 {[%clk 00:14:29]} {[%emt 00:00:18]} 19. Rde1 {[%clk
00:14:10]} {[%emt 00:00:12]} Rd8 {[%clk 00:13:57]} {[%emt 00:00:36]} 20. Bg5
{[%clk 00:14:01]} {[%emt 00:00:15]} Nd3+ {[%clk 00:13:43]} {[%emt 00:00:19]} 21.
Bxd3 {[%clk 00:13:42]} {[%emt 00:00:24]} Rxd3 {[%clk 00:13:46]} {[%emt
00:00:01]} 22. Re3 {[%clk 00:12:14]} {[%emt 00:01:33]} Rcd6 {[%clk 00:13:29]}
{[%emt 00:00:23]} 23. Rhe1 {[%clk 00:11:43]} {[%emt 00:00:36]} Rxe3 {[%clk
00:12:09]} {[%emt 00:01:25]} 24. Rxe3 {[%clk 00:10:28]} {[%emt 00:01:20]} Ng4
{[%clk 00:11:43]} {[%emt 00:00:30]} 25. Rf3 {[%clk 00:09:52]} {[%emt 00:00:41]}
e5 {[%clk 00:11:13]} {[%emt 00:00:35]} 26. Kc2 {[%clk 00:09:05]} {[%emt
00:00:52]} e4 {[%clk 00:11:17]} {[%emt 00:00:02]} 27. Rf1 {[%clk 00:09:09]} f6
{[%clk 00:10:39]} {[%emt 00:00:43]} 28. Bf4 {[%clk 00:08:55]} {[%emt 00:00:19]}
Rd7 {[%clk 00:10:32]} {[%emt 00:00:12]} 29. Rd1 {[%clk 00:08:30]} {[%emt
00:00:30]} Re7 {[%clk 00:10:28]} {[%emt 00:00:09]} 30. Bd6 {[%clk 00:08:08]}
{[%emt 00:00:27]} Ne3+ {[%clk 00:09:47]} {[%emt 00:00:46]} 31. Kc1 {[%clk
00:05:48]} {[%emt 00:02:25]} Rd7 {[%clk 00:08:27]} {[%emt 00:01:24]} 32. Re1
{[%clk 00:05:36]} {[%emt 00:00:18]} Nxg2 {[%clk 00:08:20]} {[%emt 00:00:11]} 33.
Re2 {[%clk 00:05:35]} {[%emt 00:00:06]} Rxd6 {[%clk 00:08:06]} {[%emt
00:00:20]} 34. Rxg2 {[%clk 00:05:38]} {[%emt 00:00:02]} Rd3 {[%clk 00:08:09]}
{[%emt 00:00:01]} 35. Kc2 {[%clk 00:05:40]} {[%emt 00:00:03]} Kf7 {[%clk
00:08:06]} {[%emt 00:00:09]} 36. g4 {[%clk 00:04:08]} {[%emt 00:01:37]} Ke6
{[%clk 00:07:52]} {[%emt 00:00:19]} 37. h5 {[%clk 00:02:45]} {[%emt 00:01:28]}
gxh5 {[%clk 00:07:15]} {[%emt 00:00:41]} 38. gxh5 {[%clk 00:02:49]} {[%emt
00:00:02]} Kf7 {[%clk 00:07:19]} {[%emt 00:00:01]} 39. b3 {[%clk 00:02:00]}
{[%emt 00:00:54]} f5 {[%clk 00:07:11]} {[%emt 00:00:13]} 40. c4 {[%clk
00:02:00]} {[%emt 00:00:06]} f4 {[%clk 00:06:57]} {[%emt 00:00:18]} 41. Rg4
{[%clk 00:02:01]} {[%emt 00:00:03]} Rf3 {[%clk 00:07:00]} {[%emt 00:00:02]} 42.
Kd2 {[%clk 00:01:41]} {[%emt 00:00:26]} Rf2+ {[%clk 00:06:57]} {[%emt
00:00:08]} 43. Kc3 {[%clk 00:01:42]} e3 {[%clk 00:07:00]} {[%emt 00:00:04]} 44.
Kd3 {[%clk 00:01:41]} {[%emt 00:00:07]} Kf6 {[%clk 00:06:50]} {[%emt 00:00:15]}
45. Rg6+ {[%clk 00:01:35]} {[%emt 00:00:10]} Kf5 {[%clk 00:06:09]} {[%emt
00:00:46]} 46. Rxg7 {[%clk 00:01:29]} {[%emt 00:00:12]} Rd2+ {[%clk 00:06:00]}
{[%emt 00:00:14]} 47. Kc3 {[%clk 00:01:28]} {[%emt 00:00:06]} Rh2 {[%clk
00:06:00]} {[%emt 00:00:05]} 48. Rxb7 {[%clk 00:01:03]} {[%emt 00:00:30]} f3
{[%clk 00:05:08]} {[%emt 00:00:57]} 49. Kd3 {[%clk 00:00:54]} {[%emt 00:00:14]}
e2 {[%clk 00:05:11]} {[%emt 00:00:02]} 50. Rf7+ {[%clk 00:00:41]} {[%emt
00:00:17]} Kg4 {[%clk 00:05:11]} {[%emt 00:00:06]} 51. Rxa7 {[%clk 00:00:41]}
{[%emt 00:00:05]} e1=Q {[%clk 00:05:11]} {[%emt 00:00:05]} 52. Kd4 {[%emt
00:00:07]} 0-1



[ePGN "0.1;DGT LiveChess/2.2.6"]